Cogmind - Beta 13 @@@ ROGUE MODE // 2024.07.12 @ 22:21:52 Player: Wall-e Result: Destroyed by 8R-AWN with 8R-AWN's Boregun Performance ------------- Evolutions (1) 500 Regions Visited (4) 800 Robots Destroyed (37) 185 Value Destroyed (635) 635 Prototype IDs (2) 40 Alien Tech Used (0) 0 Bonus (0) 0 TOTAL SCORE: 2160 Bonus ------- None Cogmind --------- Core Integrity 0/400 Matter 235/300 Energy 100/100 System Corruption 1% Temperature Cool (0) Movement Core (400) Ox7 Location -9/Exiles Parts ------- > --- POWER (1) -------- (None) > --- PROPULSION (2) --- (None) > --- UTILITY (4) ------ Large Storage Unit Sensor Array Terrain Scan Processor > --- WEAPON (2) ------- Heavy Hammer > --- INVENTORY (15) --- Small Storage Unit Improved Terrain Scanner Shield Generator Improved Medium Laser Improved Medium Laser Advanced EMP Blaster Datajack Peak State ------------ > --- POWER ------------ Nuclear Core > --- PROPULSION ------- Carbon-fiber Leg Carbon-fiber Leg > --- UTILITY ---------- Large Storage Unit Terrain Scan Processor Targeting Computer Advanced Targeting Computer > --- WEAPON ----------- Improved Medium Laser Advanced EMP Blaster > --- INVENTORY -------- Nuclear Core Carbon-fiber Leg Carbon-fiber Leg Small Storage Unit Sensor Array Improved Terrain Scanner Shield Generator Improved Medium Laser Advanced EMP Blaster Advanced EMP Blaster Datajack Heavy Hammer [Rating: 26] Favorites ----------- Power Nuclear Core Engine Light Ion Engine Power Core Nuclear Core Propulsion Carbon-fiber Leg Treads Light Treads Leg Carbon-fiber Leg Utility Terrain Scan Processor Device Sensor Array Storage Large Storage Unit Processor Terrain Scan Processor Protection Light Armor Plating Weapon Advanced EMP Blaster Energy Gun Improved Medium Laser Energy Cannon Beam Cannon Ballistic Gun Assault Rifle Launcher Advanced EMP Blaster Impact Weapon Heavy Hammer Build | -11 -10 -9 -9 -9 ------- Run | Yrd Mat Mat Min Exi Slots Evolved 2 | . . 2 . . Power . | . . . . . Propulsion . | . . . . . Utility 2 | . . 2 . . Weapon . | . . . . . Parts Attached 36 | 8 6 18 1 3 Power 4 | 1 1 2 . . Engine 2 | 1 1 . . . Core 2 | . . 2 . . Reactor . | . . . . . Propulsion 10 | 2 2 5 . 1 Treads 2 | 2 . . . . Leg 8 | . 2 5 . 1 Wheel . | . . . . . Hover . | . . . . . Flight . | . . . . . Utility 10 | 3 1 5 . 1 Device 4 | 2 . 2 . . Storage 2 | 1 . 1 . . Processor 3 | . 1 2 . . Hackware . | . . . . . Protection 1 | . . . . 1 Artifact . | . . . . . Weapon 12 | 2 2 6 1 1 Energy Gun 2 | . . 2 . . Energy Cannon 1 | . 1 . . . Ballistic Gun 3 | 2 1 . . . Ballistic Cannon . | . . . . . Launcher 4 | . . 3 1 . Special Weapon . | . . . . . Impact Weapon 2 | . . 1 . 1 Slashing Weapon . | . . . . . Piercing Weapon . | . . . . . Special Melee Weapon . | . . . . . Unidentified Prototypes 2 | . . 2 . . Parts Lost 15 | . 4 3 . 8 Power 3 | . 1 1 . 1 Propulsion 6 | . 2 1 . 3 Utility 4 | . 1 1 . 2 Weapon 2 | . . . . 2 Highest Loss Streak 8 | . 4 2 . 8 To Critical Strikes 6 | . . . . 6 Average Slot Usage (%) 97 | . 97 97 100 87 Engine 3 | . 13 4 . . Core 7 | . . 6 11 8 Treads 2 | . 18 . . . Leg 19 | . 7 21 22 17 Device 10 | . 9 10 11 11 Storage 11 | . 14 11 11 11 Processor 19 | . 3 21 22 19 Energy Gun 6 | . . 15 . . Energy Cannon 1 | . 9 . . . Ballistic Gun 2 | . 18 . . . Launcher 11 | . . 4 22 16 Naked Turns . | . . . . . Heaviest Build 40 | 14 16 37 40 40 Greatest Support 40 | 40 40 30 30 30 Greatest Overweight (x) 1 | . . 1 1 1 Average Overweight (x) . | . . . 1 1 Largest Inventory Capacity 15 | 8 8 15 15 15 Average Capacity 12 | 7 8 12 15 15 Most Carried 15 | 3 5 15 10 10 Average Carried 7 | 2 3 6 10 9 Final Capacity 15 | 8 8 15 15 15 Final Carried 10 | 3 2 10 10 7 Class Distribution -------------------- 100% | Mutant Dominant Class ---------------- Mutant | -10/Materials Mutant | -9/Materials Mutant | -9/Mines Mutant | -9/Exiles Resources | -11 -10 -9 -9 -9 ----------- Run | Yrd Mat Mat Min Exi Matter Collected 762 | 275 190 270 27 . Remotely . | . . . . . Salvage Created 1333 | 51 265 789 101 127 Parts 76 | 7 16 42 11 . Haulers Intercepted 1 | . . 1 . . Recyclers Shooed 1 | . . 1 . . Parts Field Recycled . | . . . . . Retrieved Matter . | . . . . . Parts Self-Destructed . | . . . . . Prevented . | . . . . . Kills | -11 -10 -9 -9 -9 ------- Run | Yrd Mat Mat Min Exi Combat Hostiles Destroyed 30 | . 7 12 4 7 Guns 8 | . 5 3 . . Cannons 2 | . 2 . . . AOE 20 | . . 9 4 7 Classes Destroyed 11 | 1 2 7 . 1 Worker 3 | . . 2 1 . Builder 1 | . . 1 . . Tunneler 3 | 3 . . . . Hauler 1 | . . 1 . . Recycler 3 | . . 3 . . Operator 1 | . . 1 . . Watcher 2 | . . 2 . . Swarmer 13 | . 3 6 4 . Grunt 8 | . 4 4 . . Sentry 2 | . . 2 . . Assembled 7 | . . . . 7 Best Kill Streak 7 | 2 3 5 5 7 Combat Bots Only 7 | . 3 3 4 7 Max Kills in Single Turn 5 | 1 1 3 5 3 Gunslinging . | . . . . . Exploded 4 | . . 2 4 3 Melee . | . . . . . Uniques/NPCs Destroyed . | . . . . . Combat | -11 -10 -9 -9 -9 -------- Run | Yrd Mat Mat Min Exi Hostile Shots Fired 214 | . 84 47 . 83 Missed 45 | . 14 11 . 20 Damage Taken 2410 | . 777 546 . 1087 Core 583 | . 175 92 . 316 Absorbed by Shields . | . . . . . Regen/Repaired (Parts) 148 | . . 148 . . Core Remaining (%) 65 | 100 30 . . . Volleys Fired 87 | 11 30 36 1 9 Largest 2 | 2 2 2 2 2 Hottest 112 | 40 80 112 72 72 Shots Fired 129 | 22 49 44 2 12 Gun 90 | 22 41 27 . . Cannon 8 | . 8 . . . Launcher 31 | . . 17 2 12 Special . | . . . . . Kinetic 63 | 22 41 . . . Thermal 35 | . 8 27 . . Explosive . | . . . . . Electromagnetic 31 | . . 17 2 12 Robot Hit Streak 11 | 2 11 7 . 3 Robot Miss Streak 5 | 3 4 2 . 5 Penetration Max . | . . . . . Secondary Targets . | . . . . . Shots Hit Robots 72 | 10 29 23 . 10 Core Hits 59 | 5 13 22 5 14 Critical Kills . | . . . . . Critical Parts Destroyed 2 | . . . . 2 Critical Strikes 5 | . . 3 . 2 Burn 3 | . . 3 . . Smash 2 | . . . . 2 Melee Attacks 11 | . . . . 11 Impact 11 | . . . . 11 Slashing . | . . . . . Piercing . | . . . . . Sneak Attacks . | . . . . . Combat Hostiles . | . . . . . Follow-up Attacks . | . . . . . Damage Inflicted 2498 | 111 376 1281 107 623 Guns 689 | 111 306 272 . . Cannons 70 | . 70 . . . Explosions 1496 | . . 1009 107 380 Melee 243 | . . . . 243 Ramming . | . . . . . Kinetic 417 | 111 306 . . . Thermal 418 | . 70 348 . . Explosive . | . . . . . Electromagnetic 1420 | . . 933 107 380 Impact 243 | . . . . 243 Slashing . | . . . . . Piercing . | . . . . . Highest Corruption 1 | . . 1 1 1 Average Corruption 1 | . . 1 1 1 Corruption Purged . | . . . . . Corruption Blocked . | . . . . . Effects 10 | . . 2 7 1 Message Errors 4 | . . 1 3 . Matter Fused 4 | . . 1 3 . Energy Discharges 1 | . . . 1 . Misfires 1 | . . . . 1 Overload Shots . | . . . . . Overflow Damage 122 | . . 29 . 93 Projectiles . | . . . . . Explosions 53 | . . 29 . 24 Melee 69 | . . . . 69 Knockbacks 2 | . . . . 2 Impact 2 | . . . . 2 Kinetic . | . . . . . Secondary . | . . . . . Self-Inflicted Damage 213 | . . 185 . 28 Shots 9 | . . 7 . 2 Rammed . | . . . . . Targets Rammed . | . . . . . Kicked . | . . . . . Crushed . | . . . . . Highest Temperature 303 | . 303 234 9 18 Average Temperature 97 | . 139 65 6 10 Received Heat Transfer 405 | . 333 72 . . Effects 1 | . 1 . . . Energy Bleed 1 | . 1 . . . Siege Activations . | . . . . . Robots Corrupted . | . . . . . Combat Hostiles . | . . . . . Parts Fried 8 | . . 7 1 . Impact Corruptions 2 | . . . . 2 Robots Melted . | . . . . . Combat Hostiles . | . . . . . Parts Melted 3 | . . 3 . . Heat Transferred 1062 | . 148 914 . . Parts Sabotaged . | . . . . . Parts Stolen . | . . . . . Parts Stripped . | . . . . . Power Chain Reactions 4 | . . 3 1 . Alert | -11 -10 -9 -9 -9 ------- Run | Yrd Mat Mat Min Exi Peak Influence 271 | 15 199 271 207 . Initial 105 | . 9 . 105 . Average 67 | 3 49 84 71 . Maximum Alert Level 1 | . . 1 1 . Low Security (%) 80 | 100 100 79 69 . Level 1 19 | . . 20 30 . Level 2 . | . . . . . Level 3 . | . . . . . Level 4 . | . . . . . Level 5 . | . . . . . High Security . | . . . . . Max Security . | . . . . . Squads Dispatched 4 | . . 4 . . Investigation 1 | . . 1 . . Extermination . | . . . . . Reinforcement 3 | . . 3 . . Assault . | . . . . . Garrison . | . . . . . Intercept . | . . . . . Searches Triggered . | . . . . . Construction Impeded 1 | . . 1 . . Haulers Reinforced . | . . . . . Active Scanning Responses . | . . . . . Cargo Convoy Interrupts . | . . . . . Stealth | -11 -10 -9 -9 -9 --------- Run | Yrd Mat Mat Min Exi Distress Signals 2 | . 1 1 . . Communications Jammed . | . . . . . Distress Signals . | . . . . . Times Spotted 34 | . 10 16 . 8 Peak Tracking Total 9 | . 6 6 . 9 Tactical Retreats 3 | . 2 1 . . Traps | -11 -10 -9 -9 -9 ------- Run | Yrd Mat Mat Min Exi Traps Triggered 1 | . . 1 . . Indirectly 1 | . . 1 . . Trap Hack Attempts . | . . . . . Triggered . | . . . . . Disarmed . | . . . . . Reprogrammed . | . . . . . Reused . | . . . . . Traps Extracted . | . . . . . Installed . | . . . . . Triggered . | . . . . . Machines | -11 -10 -9 -9 -9 ---------- Run | Yrd Mat Mat Min Exi Machines Disabled 7 | . . 3 . 4 Max in Single Turn 2 | . . 1 . 2 Machines Repaired . | . . . . . Machines Dismantled . | . . . . . Machines Sabotaged . | . . . . . Overloaded Fab Kills . | . . . . . Hacking | -11 -10 -9 -9 -9 --------- Run | Yrd Mat Mat Min Exi Machines Accessed 3 | . 1 2 . . Terminals 2 | . 1 1 . . Fabricators . | . . . . . Repair Stations 1 | . . 1 . . Recycling Units . | . . . . . Scanalyzers . | . . . . . Garrison Access . | . . . . . Total Hacks 13 | . 2 11 . . Successful 7 | . . 7 . . Failed 6 | . 2 4 . . Catastrophic 1 | . 1 . . . Database Lockouts . | . . . . . Manual 2 | . . 2 . . Terminals 4 | . 2 2 . . Fabricators . | . . . . . Repair Stations 9 | . . 9 . . Recycling Units . | . . . . . Scanalyzers . | . . . . . Garrison Access . | . . . . . Terminal Hacks . | . . . . . Fabricator Hacks . | . . . . . Repair Station Hacks 6 | . . 6 . . Scan Component 3 | . . 3 . . Repair 3 | . . 3 . . Recycling Unit Hacks . | . . . . . Scanalyzer . | . . . . . Garrison Access Hacks . | . . . . . Unauthorized Hacks 1 | . . 1 . . Terminals 1 | . . 1 . . Botnet 1 | . . 1 . . Fabricators . | . . . . . Repair Stations . | . . . . . Recycling Units . | . . . . . Scanalyzers . | . . . . . Garrison Access . | . . . . . Data Cores Recovered . | . . . . . Used . | . . . . . Hacking Detections 3 | . 1 2 . . Full Trace Events 1 | . 1 . . . Feedback Events . | . . . . . Feedback Blocked . | . . . . . Robot Schematics Acquired . | . . . . . Robots Built . | . . . . . Authchips . | . . . . . Time . | . . . . . Total Robot Build Rating . | . . . . . Part Schematics Acquired . | . . . . . Parts Built . | . . . . . Authchips . | . . . . . Time . | . . . . . Total Part Build Rating . | . . . . . Parts Repaired 3 | . . 3 . . Time 136 | . . 136 . . Parts Recycled . | . . . . . Recycled Matter . | . . . . . Retrieved Matter . | . . . . . Retrieved Components . | . . . . . Parts Scanalyzed . | . . . . . Part Schematics Acquired . | . . . . . Parts Damaged . | . . . . . Bothacking | -11 -10 -9 -9 -9 ------------ Run | Yrd Mat Mat Min Exi Used RIF Installer . | . . . . . Robots Hacked . | . . . . . Non-combat . | . . . . . Combat . | . . . . . Robot Hacks Applied . | . . . . . Relay Couplers Released . | . . . . . Fabnet Peak Effective % . | . . . . . Robots Rewired . | . . . . . Allies Hacked . | . . . . . Hacks Repelled . | . . . . . Allies | -11 -10 -9 -9 -9 -------- Run | Yrd Mat Mat Min Exi Total Allies . | . . . . . Largest Group . | . . . . . Highest-Rated Group . | . . . . . Highest-Rated Ally . | . . . . . Total Orders . | . . . . . Ally Attacks . | . . . . . Total Damage . | . . . . . Kills . | . . . . . Allies Corrupted . | . . . . . Allies Melted . | . . . . . Intel | -11 -10 -9 -9 -9 ------- Run | Yrd Mat Mat Min Exi Robot Analysis Total . | . . . . . Derelict Logs Recovered 2 | . . . 2 . Drone Launches . | . . . . . Drone Recoveries . | . . . . . Exploration | -11 -10 -9 -9 -9 ------------- Run | Yrd Mat Mat Min Exi Turns Passed 3115 | 230 429 1156 1102 198 Spaces Moved 1172 | 117 121 302 566 66 Core 2 | 2 . . . . Treads 175 | 115 60 . . . Legs 995 | . 61 302 566 66 Wheels . | . . . . . Hover . | . . . . . Flight . | . . . . . Fastest Speed 50 | 50 120 120 190 190 Average Speed 177 | 158 139 172 190 190 Slowest Speed 190 | 160 160 190 190 190 Overloaded Moves . | . . . . . Propulsion Burnouts . | . . . . . Robots Hopped . | . . . . . Cave-ins Triggered . | . . . . . Exploration Rate (%) 35 | 9 27 34 97 12 Regions Visited 4 Branch Regions 2 Pre-discovered Areas . | . . . . . Known Exits Taken . | . . . . . Unknown Exits Taken 4 | 1 1 1 1 . Scrap Searched 1 | . . . 1 . Spaces Dug . | . . . . . Terrain Destroyed 63 | . . 56 7 . Melee . | . . . . . Projectile . | . . . . . AOE 63 | . . 56 7 . Terrain Rammed . | . . . . . Walls Destroyed . | . . . . . Machines Disabled . | . . . . . Actions | -11 -10 -9 -9 -9 --------- Run | Yrd Mat Mat Min Exi Total 2063 | 139 333 891 591 109 Wait 732 | . 174 514 24 20 Move 1168 | 116 120 301 565 66 Hop . | . . . . . Pick Up 20 | 3 3 14 . . Fast Attach 15 | 8 . 7 . . Attach 12 | . 4 5 . 3 Detach . | . . . . . Swap 9 | . 2 6 1 . Drop 9 | 1 . 8 . . Fire 87 | 11 30 36 1 9 Melee 11 | . . . . 11 Ram . | . . . . . Kick . | . . . . . Crush . | . . . . . Escape Stasis . | . . . . . Rewire . | . . . . . Trap . | . . . . . Miscellaneous . | . . . . . Route ------- -11/Scrapyard -10/Materials -9/Materials -9/Mines (discovered 3 exits: [*Mat x2] / [*Exi]) -9/Exiles (discovered 1 exit: [*Min]) History --------- Turn | Location | Event 10 | -11/Scrapyard | Discovered new exit (range 16) 231 | -11/Scrapyard | Entered Materials 303 | -10/Materials | Build established: Mutant 518 | -10/Materials | Core integrity fell below 50% 570 | -10/Materials | Lost 4 parts (1p2n1u) 618 | -10/Materials | Discovered new exit (range 14) 660 | -10/Materials | Entered another Materials area 660 | -9/Materials | Evolved 2 slots: Utility x2 1577 | -9/Materials | Discovered new exit (range 9) 1683 | -9/Materials | Repaired Carbon-fiber Leg 1745 | -9/Materials | Repaired Adv. EMP Blaster 1784 | -9/Materials | Repaired Carbon-fiber Leg 1816 | -9/Materials | Entered Mines 1855 | -9/Mines | Met a Derelict bent on vengeance 1988 | -9/Mines | Learned Materials terminal intel 2388 | -9/Mines | Discovered new exit (range 5) 2671 | -9/Mines | Discovered new exit (range 9) 2909 | -9/Mines | Deemed a non-threat by the Exiles lab entrance 2911 | -9/Mines | Discovered new exit (range 5) 2918 | -9/Mines | Entered Exiles 2956 | -9/Exiles | Discovered new exit (range 15) 3004 | -9/Exiles | Met 8R-AWN 3025 | -9/Exiles | Attacked by the Exiles 3064 | -9/Exiles | Core integrity fell below 50% 3075 | -9/Exiles | Destroyed 7 combat bots 3089 | -9/Exiles | Core integrity fell below 20% 3116 | -9/Exiles | Destroyed by 8R-AWN with 8R-AWN's Boregun Last Messages --------------- 03093_ Penetrated by HV Slug. 03093_ HV Slug penetrates Earth. 03097_ Penetrated by HV Slug. 03097_ HV Slug penetrates Earth. 03097_ Penetrated by HV Slug. 03097_ HV Slug penetrates Earth. 03101_ Penetrated by HV Slug. 03101_ 8R-AWN suffers critical hit (Smash). 03101_ Destroyed Rnf. Fission Core. 03101_ 8R-AWN system corrupted by crushing effect. 03101_ 8R-AWN knocked back. 03104_ Penetrated by HV Slug. 03113_ Critical hit (Destroy). 03113_ Carbon-fiber Leg destroyed. 03114_ 8R-AWN suffers critical hit (Smash). 03114_ Destroyed Prototype Processor. 03114_ 8R-AWN system corrupted by crushing effect. 03116_ Penetrated by HV Slug. Map ----- +----------------------------------------------------+ | ?????????????????????????????????????????????????? | | ?????????????????????????????????????????????????? | | ?????????????????????????????????????????????????? | | ?????????????????????????????????????????????????? | | ?????????????????????????????????????????????????? | | ?????????????????????????????????????????????????? | | ?????????????????????????????????????????????????? | | ?????????????????????????????????????????????????? | | ?????????????????????????????????????????????????? | | ?????????????????????????????????????????????????? | | ?????????????????????????????????????????????????? | | ?????????????????????????????????????????????????? | | ?????????????????????????????????????????????????? | | ?????????????????????????????????????????????????? | | ????????????????????????????????????????????????## | | ???????????????????????????????????????????????# | | ?????????????????????????????????????????????## | | ?????????????????????????????????????????????# < | | ?????????????????????????????????????????????# | | ?????????????????????????????????????????????# | | ????????????????????????????????????????????## # | | ???????????????????????????????????????????## # | | ???????????????????????????????????????????# | | ???????????????????????#####???????????????# | | ??????????????????????## g #??????????????## | | ??????????????????????# @ #?????????????## # | | ?????????????????????## ##????????????# #? | | ???????????????????### ###????????### ##? | | ???????????????????# ########## #?? | | ??????????????????## #""""## ##?? | | ??????????????????# % % * ##?? | | ??????????? % #; * #?? | | ????????? ##;; ##? | | ????????? % ?#; "#### ## | | ?????????? % # #?#;;;####??#### * | | ?????????? % ### #??# # #????????##### | | ?????????? % #??# ???# # #????????????### | | ??????????? #??? #???# ? #??????????????### | | ??????????? ????##????? ? #????????????????### | | ???????????? ???????????? ? #?????????????????#" | | ????????????????????????? ? ?????????????????#### | | ????????????????????????? ?# ????????????????????# | | ???????????????????????????? ????????????????????# | | ???????????????????????????? ????????????????????? | | ???????????????????????????? ????????????????????? | | ?????????????????????????????????????????????????? | | ?????????????????????????????????????????????????? | | ?????????????????????????????????????????????????? | | ?????????????????????????????????????????????????? | | ?????????????????????????????????????????????????? | +----------------------------------------------------+ Best States ------------- Heat Dissipation 28 Energy Generation 14 Energy Capacity 250 Matter Stores 300 Matter Capacity 300 Sight Range 16 Robot Scan Range 14 Terrain Scan Range 16 Terrain Scan Density 85 Armor Coverage 150 Evasion (%) 55 Targeting Accuracy 8 Recoil Reduction 2 Item Schematics ----------------- None Robot Schematics ------------------ None Fabricated ------------ Nothing Alien Tech Used ----------------- None Achievements -------------- None Challenges ------------ None Game ------ Seed TerrabombDeepNanoactuators Manual? 0 Play Time 00:22:48 Cumulative 520.0 hours Start 2024.07.12 @ 22:01:31 End 2024.07.12 @ 22:21:52 Sessions 1 Manual Loads 0 Difficulty Rogue Special Mode None Game No. 182 Rogue 75 Adventurer 8 Explorer 99 Win Type - Total 17 Types 8/1/6/2/0/0/0/0/0 Lore% 78 Gallery% 74 Achievement% 79 Wizard Run 0 Options --------- Layout 1 ASCII 0 Keyboard 0 Movement Mouse Keybinds 0 Fullscreen 1 Font 24/Smallcaps Map View 50x35 Zoom Use 0% Tactical HUD 1 Map Filters NONE Filters NONE Steam 1 RUN: ce74fe65-e551-44b5-b5fd-8617ce3ab52b